[Event "Titled Tuesday Blitz September 27 Early 2022"]
[White "Saydaliev, Saidakbar"]
[Black "Kislov, Oleg"]
[WhiteFideId "14203693"]
[BlackFideId "13503774"]
[WhiteElo "2265"]
[BlackElo "2185"]
[Result "1-0"]
[Round "10"]
[TimeControl "180+1"]
[Date "2022.09.27"]
[WhiteClock "0:02:30"]
[BlackClock "0:01:52"]

1. e4 {[%clk 0:03:00]}  c5 {[%clk 0:02:53]} 2. Nf3 {[%clk 0:03:00]}  Nc6 {[%clk 0:02:52]} 3. Bb5 {[%clk 0:02:59]}  g6 {[%clk 0:02:52]} 4. O-O {[%clk 0:02:58]}  Bg7 {[%clk 0:02:51]} 5. Bxc6 {[%clk 0:02:58]}  dxc6 {[%clk 0:02:51]} 6. d3 {[%clk 0:02:56]}  e5 {[%clk 0:02:50]} 7. Be3 {[%clk 0:02:56]}  Qe7 {[%clk 0:02:50]} 8. Nbd2 {[%clk 0:02:51]}  Nf6 {[%clk 0:02:49]} 9. h3 {[%clk 0:02:50]}  O-O {[%clk 0:02:43]} 10. a3 {[%clk 0:02:47]}  Nd7 {[%clk 0:02:38]} 11. Qb1 {[%clk 0:02:43]}  f5 {[%clk 0:02:31]} 12. Qa2+ {[%clk 0:02:37]}  Kh8 {[%clk 0:02:30]} 13. Bg5 {[%clk 0:02:37]}  Nf6 {[%clk 0:02:25]} 14. exf5 {[%clk 0:02:36]}  gxf5 {[%clk 0:02:24]} 15. Rfe1 {[%clk 0:02:36]}  e4 {[%clk 0:02:10]} 16. dxe4 {[%clk 0:02:35]}  fxe4 {[%clk 0:02:11]} 17. Nxe4 {[%clk 0:02:34]}  Be6 {[%clk 0:02:05]} 18. Nxf6 {[%clk 0:02:32]}  Bxa2 {[%clk 0:01:56]} 19. Rxe7 {[%clk 0:02:30]}  Bxf6 {[%clk 0:01:52]} 20. Bxf6+ {[%clk 0:02:30]}  Rxf6 {[%clk 0:01:52]} 21. Rxa2 {[%clk 0:02:30]} 1-0


[Site "https://www.chess.com"]

[Event "Titled Tuesday Blitz September 27 Early 2022"]
[White "Sebenik, Matej"]
[Black "Heinemann, Josefine"]
[WhiteFideId "14602296"]
[BlackFideId "12900460"]
[WhiteElo "2461"]
[BlackElo "2300"]
[Result "0-1"]
[Round "10"]
[TimeControl "180+1"]
[Date "2022.09.27"]
[WhiteClock "0:00:02"]
[BlackClock "0:00:40"]

1. d4 {[%clk 0:03:00]}  Nf6 {[%clk 0:02:58]} 2. Nf3 {[%clk 0:03:01]}  d5 {[%clk 0:02:57]} 3. e3 {[%clk 0:03:01]}  c5 {[%clk 0:02:55]} 4. Be2 {[%clk 0:03:01]}  Nc6 {[%clk 0:02:55]} 5. O-O {[%clk 0:03:01]}  Bg4 {[%clk 0:02:54]} 6. c3 {[%clk 0:03:00]}  e6 {[%clk 0:02:53]} 7. Nbd2 {[%clk 0:02:58]}  Be7 {[%clk 0:02:49]} 8. h3 {[%clk 0:02:56]}  Bh5 {[%clk 0:02:49]} 9. dxc5 {[%clk 0:02:52]}  Bxc5 {[%clk 0:02:48]} 10. b4 {[%clk 0:02:52]}  Bd6 {[%clk 0:02:48]} 11. Bb2 {[%clk 0:02:52]}  O-O {[%clk 0:02:47]} 12. a3 {[%clk 0:02:45]}  Rc8 {[%clk 0:02:36]} 13. c4 {[%clk 0:02:45]}  Bxf3 {[%clk 0:02:22]} 14. Bxf3 {[%clk 0:02:31]}  Ne5 {[%clk 0:02:21]} 15. cxd5 {[%clk 0:02:31]}  Nxf3+ {[%clk 0:02:20]} 16. Nxf3 {[%clk 0:02:29]}  Nxd5 {[%clk 0:02:20]} 17. Qd4 {[%clk 0:02:28]}  Qf6 {[%clk 0:02:01]} 18. e4 {[%clk 0:01:23]}  Qxd4 {[%clk 0:01:57]} 19. Bxd4 {[%clk 0:01:24]}  Nc3 {[%clk 0:01:49]} 20. Rfe1 {[%clk 0:01:05]}  Nb5 {[%clk 0:01:48]} 21. Be3 {[%clk 0:01:03]}  a6 {[%clk 0:01:41]} 22. Red1 {[%clk 0:00:43]}  Rfd8 {[%clk 0:01:25]} 23. Bb6 {[%clk 0:00:41]}  Bc7 {[%clk 0:01:24]} 24. Bxc7 {[%clk 0:00:38]}  Nxc7 {[%clk 0:01:23]} 25. Rxd8+ {[%clk 0:00:36]}  Rxd8 {[%clk 0:01:23]} 26. Rc1 {[%clk 0:00:37]}  Ne8 {[%clk 0:01:19]} 27. a4 {[%clk 0:00:30]}  Kf8 {[%clk 0:01:18]} 28. Kf1 {[%clk 0:00:30]}  Ke7 {[%clk 0:01:19]} 29. Ke2 {[%clk 0:00:26]}  Nd6 {[%clk 0:01:19]} 30. Rc7+ {[%clk 0:00:25]}  Rd7 {[%clk 0:01:19]} 31. Rxd7+ {[%clk 0:00:25]}  Kxd7 {[%clk 0:01:19]} 32. Kd3 {[%clk 0:00:26]}  f6 {[%clk 0:01:19]} 33. e5 {[%clk 0:00:25]}  Nf7 {[%clk 0:01:14]} 34. exf6 {[%clk 0:00:25]}  gxf6 {[%clk 0:01:15]} 35. g4 {[%clk 0:00:18]}  Kd6 {[%clk 0:01:15]} 36. Kd4 {[%clk 0:00:18]}  f5 {[%clk 0:01:10]} 37. gxf5 {[%clk 0:00:14]}  exf5 {[%clk 0:01:11]} 38. Nd2 {[%clk 0:00:11]}  Ng5 {[%clk 0:00:53]} 39. Nc4+ {[%clk 0:00:10]}  Ke6 {[%clk 0:00:53]} 40. Kc5 {[%clk 0:00:06]}  Nxh3 {[%clk 0:00:52]} 41. Na5 {[%clk 0:00:05]}  Nxf2 {[%clk 0:00:51]} 42. Nxb7 {[%clk 0:00:06]}  h5 {[%clk 0:00:51]} 43. b5 {[%clk 0:00:06]}  axb5 {[%clk 0:00:50]} 44. a5 {[%clk 0:00:06]}  h4 {[%clk 0:00:50]} 45. a6 {[%clk 0:00:07]}  Ne4+ {[%clk 0:00:48]} 46. Kd4 {[%clk 0:00:03]}  h3 {[%clk 0:00:45]} 47. a7 {[%clk 0:00:02]}  h2 {[%clk 0:00:45]} 48. a8=Q {[%clk 0:00:01]}  h1=Q {[%clk 0:00:46]} 49. Qg8+ {[%clk 0:00:02]}  Kf6 {[%clk 0:00:44]} 50. Qf8+ {[%clk 0:00:02]}  Kg5 {[%clk 0:00:43]} 51. Qg7+ {[%clk 0:00:02]}  Kf4 {[%clk 0:00:41]} 52. Qe5+ {[%clk 0:00:02]}  Kg4 {[%clk 0:00:41]} 53. Qg7+ {[%clk 0:00:02]}  Kf3 {[%clk 0:00:40]} 0-1


[Site "https://www.chess.com"]

[Event "Titled Tuesday Blitz September 27 Early 2022"]
[White "Shandrygin, Nikita"]
[Black "Barash, Anton"]
[WhiteFideId "24198668"]
[BlackFideId "30935229"]
[WhiteElo "2323"]
[BlackElo "2292"]
[Result "1-0"]
[Round "10"]
[TimeControl "180+1"]
[Date "2022.09.27"]
[WhiteClock "0:00:09"]
[BlackClock "0:00:05"]

1. e4 {[%clk 0:02:55]}  e6 {[%clk 0:02:58]} 2. d4 {[%clk 0:02:55]}  d5 {[%clk 0:02:58]} 3. Nd2 {[%clk 0:02:56]}  Nc6 {[%clk 0:02:58]} 4. Ngf3 {[%clk 0:02:54]}  Nf6 {[%clk 0:02:58]} 5. e5 {[%clk 0:02:54]}  Nd7 {[%clk 0:02:56]} 6. Bd3 {[%clk 0:02:55]}  Nb4 {[%clk 0:02:55]} 7. Be2 {[%clk 0:02:35]}  c5 {[%clk 0:02:55]} 8. c4 {[%clk 0:02:03]}  dxc4 {[%clk 0:02:33]} 9. Nxc4 {[%clk 0:01:58]}  Nb6 {[%clk 0:02:24]} 10. Be3 {[%clk 0:01:48]}  cxd4 {[%clk 0:02:10]} 11. Bxd4 {[%clk 0:01:36]}  Nxc4 {[%clk 0:02:07]} 12. Bxc4 {[%clk 0:01:36]}  Nc6 {[%clk 0:02:08]} 13. O-O {[%clk 0:01:22]}  Nxd4 {[%clk 0:01:16]} 14. Nxd4 {[%clk 0:01:21]}  Bc5 {[%clk 0:01:16]} 15. Nb5 {[%clk 0:00:54]}  O-O {[%clk 0:01:15]} 16. Qf3 {[%clk 0:00:20]}  Qb6 {[%clk 0:00:56]} 17. b4 {[%clk 0:00:20]}  Be7 {[%clk 0:00:36]} 18. Rfd1 {[%clk 0:00:13]}  Rd8 {[%clk 0:00:25]} 19. Rxd8+ {[%clk 0:00:12]}  Bxd8 {[%clk 0:00:24]} 20. Rd1 {[%clk 0:00:12]}  Be7 {[%clk 0:00:24]} 21. Nd6 {[%clk 0:00:12]}  f5 {[%clk 0:00:17]} 22. Qxf5 {[%clk 0:00:09]}  Kh8 {[%clk 0:00:09]} 23. Bxe6 {[%clk 0:00:08]}  Bxe6 {[%clk 0:00:08]} 24. Qxe6 {[%clk 0:00:09]}  Bg5 {[%clk 0:00:05]} 25. Nf7+ {[%clk 0:00:09]} 1-0


[Site "https://www.chess.com"]

[Event "Titled Tuesday Blitz September 27 Early 2022"]
[White "Sipila, Vilka"]
[Black "Brodowski, Piotr"]
[WhiteFideId "505455"]
[BlackFideId "1124480"]
[WhiteElo "2329"]
[BlackElo "2312"]
[Result "1-0"]
[Round "10"]
[TimeControl "180+1"]
[Date "2022.09.27"]
[WhiteClock "0:01:40"]
[BlackClock "0:01:30"]

1. b3 {[%clk 0:02:53]}  g6 {[%clk 0:02:57]} 2. Bb2 {[%clk 0:02:54]}  Nf6 {[%clk 0:02:55]} 3. Nf3 {[%clk 0:02:54]}  Bg7 {[%clk 0:02:56]} 4. g3 {[%clk 0:02:55]}  O-O {[%clk 0:02:56]} 5. Bg2 {[%clk 0:02:55]}  d6 {[%clk 0:02:56]} 6. d4 {[%clk 0:02:55]}  Nbd7 {[%clk 0:02:56]} 7. O-O {[%clk 0:02:56]}  e5 {[%clk 0:02:56]} 8. dxe5 {[%clk 0:02:57]}  Ng4 {[%clk 0:02:57]} 9. c4 {[%clk 0:02:57]}  Ngxe5 {[%clk 0:02:57]} 10. Qc1 {[%clk 0:02:57]}  Qf6 {[%clk 0:02:47]} 11. Nc3 {[%clk 0:02:56]}  c6 {[%clk 0:02:44]} 12. Rd1 {[%clk 0:02:56]}  Nxf3+ {[%clk 0:02:43]} 13. exf3 {[%clk 0:02:55]}  a5 {[%clk 0:02:38]} 14. Qd2 {[%clk 0:02:54]}  Nc5 {[%clk 0:02:29]} 15. Na4 {[%clk 0:02:46]}  Qe7 {[%clk 0:02:29]} 16. Bxg7 {[%clk 0:02:45]}  Kxg7 {[%clk 0:02:30]} 17. Nb6 {[%clk 0:02:44]}  Ra6 {[%clk 0:02:28]} 18. Nxc8 {[%clk 0:02:42]}  Rxc8 {[%clk 0:02:29]} 19. Qxd6 {[%clk 0:02:43]}  Qxd6 {[%clk 0:02:29]} 20. Rxd6 {[%clk 0:02:43]}  a4 {[%clk 0:02:28]} 21. b4 {[%clk 0:02:44]}  Ne6 {[%clk 0:02:19]} 22. c5 {[%clk 0:02:39]}  a3 {[%clk 0:02:19]} 23. Rb1 {[%clk 0:02:37]}  Re8 {[%clk 0:02:16]} 24. Bf1 {[%clk 0:02:31]}  Ra4 {[%clk 0:02:15]} 25. Rd7 {[%clk 0:02:25]}  Rd8 {[%clk 0:02:10]} 26. Rxb7 {[%clk 0:02:24]}  Rd2 {[%clk 0:02:10]} 27. Bc4 {[%clk 0:02:24]}  Kf6 {[%clk 0:02:08]} 28. Rb6 {[%clk 0:02:16]}  Rb2 {[%clk 0:02:06]} 29. Re1 {[%clk 0:02:08]}  Rbxb4 {[%clk 0:02:05]} 30. Bxe6 {[%clk 0:02:00]}  Rxb6 {[%clk 0:01:38]} 31. cxb6 {[%clk 0:02:00]}  fxe6 {[%clk 0:01:38]} 32. Rb1 {[%clk 0:02:01]}  Ra8 {[%clk 0:01:38]} 33. Rc1 {[%clk 0:02:01]}  Ra5 {[%clk 0:01:32]} 34. Rxc6 {[%clk 0:01:56]}  Rb5 {[%clk 0:01:33]} 35. Rc3 {[%clk 0:01:46]}  Rxb6 {[%clk 0:01:32]} 36. Rxa3 {[%clk 0:01:46]}  Rb1+ {[%clk 0:01:32]} 37. Kg2 {[%clk 0:01:46]}  Ra1 {[%clk 0:01:33]} 38. f4 {[%clk 0:01:46]}  h5 {[%clk 0:01:33]} 39. Ra7 {[%clk 0:01:45]}  Rb1 {[%clk 0:01:31]} 40. Kf3 {[%clk 0:01:45]}  Rc1 {[%clk 0:01:31]} 41. h3 {[%clk 0:01:44]}  Rh1 {[%clk 0:01:31]} 42. a4 {[%clk 0:01:40]}  Rxh3 {[%clk 0:01:30]} 43. Kg2 {[%clk 0:01:40]} 1-0


[Site "https://www.chess.com"]

[Event "Titled Tuesday Blitz September 27 Early 2022"]
[White "Song, Julien"]
[Black "Rottenwohrer Suarez, Juan"]
[WhiteFideId "659487"]
[BlackFideId "32068182"]
[WhiteElo "2225"]
[BlackElo "2132"]
[Result "0-1"]
[Round "10"]
[TimeControl "180+1"]
[Date "2022.09.27"]
[WhiteClock "0:00:58"]
[BlackClock "0:00:19"]

1. d4 {[%clk 0:02:58]}  Nf6 {[%clk 0:02:59]} 2. Bg5 {[%clk 0:02:57]}  d5 {[%clk 0:02:58]} 3. Nd2 {[%clk 0:02:56]}  Bf5 {[%clk 0:02:48]} 4. Bxf6 {[%clk 0:02:53]}  exf6 {[%clk 0:02:43]} 5. e3 {[%clk 0:02:53]}  c5 {[%clk 0:02:41]} 6. dxc5 {[%clk 0:02:50]}  Bxc5 {[%clk 0:02:38]} 7. Bd3 {[%clk 0:02:50]}  Bxd3 {[%clk 0:02:23]} 8. cxd3 {[%clk 0:02:49]}  O-O {[%clk 0:02:24]} 9. d4 {[%clk 0:02:45]}  Bb6 {[%clk 0:02:00]} 10. Ne2 {[%clk 0:02:45]}  f5 {[%clk 0:01:56]} 11. O-O {[%clk 0:02:45]}  Nd7 {[%clk 0:01:56]} 12. Nc3 {[%clk 0:02:41]}  Nf6 {[%clk 0:01:56]} 13. Qf3 {[%clk 0:02:37]}  g6 {[%clk 0:01:56]} 14. Rfc1 {[%clk 0:02:30]}  Ne4 {[%clk 0:01:53]} 15. Ndxe4 {[%clk 0:02:26]}  dxe4 {[%clk 0:01:54]} 16. Qe2 {[%clk 0:02:21]}  Rc8 {[%clk 0:01:47]} 17. Qb5 {[%clk 0:02:14]}  f4 {[%clk 0:01:11]} 18. Qd5 {[%clk 0:02:06]}  Rxc3 {[%clk 0:00:57]} 19. Qxe4 {[%clk 0:01:56]}  Rxc1+ {[%clk 0:00:55]} 20. Rxc1 {[%clk 0:01:56]}  fxe3 {[%clk 0:00:55]} 21. fxe3 {[%clk 0:01:56]}  Re8 {[%clk 0:00:54]} 22. Qxb7 {[%clk 0:01:53]}  Qg5 {[%clk 0:00:47]} 23. Rf1 {[%clk 0:01:27]}  Qxe3+ {[%clk 0:00:47]} 24. Kh1 {[%clk 0:01:27]}  Re7 {[%clk 0:00:47]} 25. Qc8+ {[%clk 0:01:25]}  Kg7 {[%clk 0:00:47]} 26. d5 {[%clk 0:01:25]}  Qf2 {[%clk 0:00:27]} 27. Qc3+ {[%clk 0:01:22]}  Bd4 {[%clk 0:00:20]} 28. Qc4 {[%clk 0:01:13]}  Re1 {[%clk 0:00:18]} 29. Qxd4+ {[%clk 0:00:58]}  Qxd4 {[%clk 0:00:19]} 30. Rxe1 {[%clk 0:00:58]}  Qxd5 {[%clk 0:00:19]} 0-1


[Site "https://www.chess.com"]

[Event "Titled Tuesday Blitz September 27 Early 2022"]
[White "Tasev, Dejan"]
[Black "Harsh Suresh"]
[WhiteFideId "936618"]
[BlackFideId "45018464"]
[WhiteElo "2256"]
[BlackElo "2070"]
[Result "1/2-1/2"]
[Round "10"]
[TimeControl "180+1"]
[Date "2022.09.27"]
[WhiteClock "0:00:12"]
[BlackClock "0:00:06"]

1. e4 {[%clk 0:03:00]}  c6 {[%clk 0:03:00]} 2. d4 {[%clk 0:03:00]}  d5 {[%clk 0:03:00]} 3. Nc3 {[%clk 0:03:01]}  dxe4 {[%clk 0:03:00]} 4. Nxe4 {[%clk 0:03:02]}  Nf6 {[%clk 0:03:01]} 5. Nxf6+ {[%clk 0:03:02]}  exf6 {[%clk 0:03:02]} 6. c3 {[%clk 0:03:03]}  Bd6 {[%clk 0:03:02]} 7. Bd3 {[%clk 0:03:03]}  O-O {[%clk 0:03:03]} 8. Qc2 {[%clk 0:03:04]}  Re8+ {[%clk 0:03:02]} 9. Ne2 {[%clk 0:03:04]}  h5 {[%clk 0:03:03]} 10. h3 {[%clk 0:03:04]}  Nd7 {[%clk 0:03:02]} 11. O-O {[%clk 0:03:04]}  Nf8 {[%clk 0:03:02]} 12. Bd2 {[%clk 0:03:04]}  Be6 {[%clk 0:03:00]} 13. f4 {[%clk 0:03:02]}  b5 {[%clk 0:02:58]} 14. Rae1 {[%clk 0:03:00]}  a5 {[%clk 0:02:57]} 15. f5 {[%clk 0:02:57]}  Bd5 {[%clk 0:02:56]} 16. Nf4 {[%clk 0:02:44]}  Bxf4 {[%clk 0:02:55]} 17. Bxf4 {[%clk 0:02:42]}  a4 {[%clk 0:02:54]} 18. a3 {[%clk 0:02:42]}  Bb3 {[%clk 0:02:21]} 19. Qf2 {[%clk 0:02:36]}  Qd5 {[%clk 0:02:21]} 20. Qh4 {[%clk 0:02:08]}  Bc4 {[%clk 0:02:20]} 21. Bxc4 {[%clk 0:02:03]}  Qxc4 {[%clk 0:02:21]} 22. Qxh5 {[%clk 0:02:00]}  Qd3 {[%clk 0:02:21]} 23. Qg4 {[%clk 0:01:45]}  Re4 {[%clk 0:02:10]} 24. Rxe4 {[%clk 0:01:42]}  Qxe4 {[%clk 0:02:10]} 25. Qf3 {[%clk 0:01:35]}  Re8 {[%clk 0:02:07]} 26. Qxe4 {[%clk 0:01:34]}  Rxe4 {[%clk 0:02:08]} 27. g3 {[%clk 0:01:22]}  Nd7 {[%clk 0:01:37]} 28. Kf2 {[%clk 0:01:15]}  Nb6 {[%clk 0:01:36]} 29. Re1 {[%clk 0:01:08]}  Rxe1 {[%clk 0:01:36]} 30. Kxe1 {[%clk 0:01:08]}  Nc4 {[%clk 0:01:37]} 31. Bc1 {[%clk 0:01:09]}  g6 {[%clk 0:01:37]} 32. fxg6 {[%clk 0:01:00]}  fxg6 {[%clk 0:01:38]} 33. Ke2 {[%clk 0:01:00]}  Kf7 {[%clk 0:01:37]} 34. h4 {[%clk 0:01:00]}  f5 {[%clk 0:01:30]} 35. Kf3 {[%clk 0:01:00]}  Kf6 {[%clk 0:01:29]} 36. g4 {[%clk 0:01:00]}  fxg4+ {[%clk 0:01:29]} 37. Kxg4 {[%clk 0:01:00]}  Kg7 {[%clk 0:01:12]} 38. Kf4 {[%clk 0:00:33]}  Kf6 {[%clk 0:00:42]} 39. Ke4 {[%clk 0:00:33]}  Ke6 {[%clk 0:00:42]} 40. Kd3 {[%clk 0:00:31]}  Kd5 {[%clk 0:00:38]} 41. Kc2 {[%clk 0:00:31]}  Ke4 {[%clk 0:00:33]} 42. b3 {[%clk 0:00:30]}  Nb6 {[%clk 0:00:28]} 43. Bg5 {[%clk 0:00:28]}  axb3+ {[%clk 0:00:17]} 44. Kxb3 {[%clk 0:00:28]}  Kd3 {[%clk 0:00:18]} 45. Be7 {[%clk 0:00:22]}  Nd5 {[%clk 0:00:17]} 46. Bb4 {[%clk 0:00:22]}  Ne3 {[%clk 0:00:15]} 47. a4 {[%clk 0:00:21]}  bxa4+ {[%clk 0:00:16]} 48. Kxa4 {[%clk 0:00:22]}  Nf5 {[%clk 0:00:17]} 49. Ka5 {[%clk 0:00:21]}  Kc4 {[%clk 0:00:17]} 50. Kb6 {[%clk 0:00:21]}  Kd5 {[%clk 0:00:18]} 51. Kc7 {[%clk 0:00:16]}  Nxh4 {[%clk 0:00:18]} 52. Kd7 {[%clk 0:00:16]}  Nf5 {[%clk 0:00:17]} 53. Ba5 {[%clk 0:00:13]}  Ne3 {[%clk 0:00:14]} 54. Ke7 {[%clk 0:00:12]}  g5 {[%clk 0:00:14]} 55. Kd7 {[%clk 0:00:09]}  g4 {[%clk 0:00:13]} 56. Bc7 {[%clk 0:00:09]}  Nf5 {[%clk 0:00:06]} 57. c4+ {[%clk 0:00:09]}  Kxc4 {[%clk 0:00:07]} 58. Kxc6 {[%clk 0:00:10]}  Kxd4 {[%clk 0:00:08]} 59. Kb5 {[%clk 0:00:09]}  Ke3 {[%clk 0:00:08]} 60. Kc4 {[%clk 0:00:10]}  Kf2 {[%clk 0:00:06]} 61. Kd3 {[%clk 0:00:10]}  Kf3 {[%clk 0:00:04]} 62. Kd2 {[%clk 0:00:10]}  Kf2 {[%clk 0:00:05]} 63. Kd3 {[%clk 0:00:10]}  Ne3 {[%clk 0:00:05]} 64. Bb6 {[%clk 0:00:10]}  Kf3 {[%clk 0:00:04]} 65. Bxe3 {[%clk 0:00:10]}  g3 {[%clk 0:00:04]} 66. Bd4 {[%clk 0:00:10]}  g2 {[%clk 0:00:04]} 67. Bc5 {[%clk 0:00:11]}  Kg3 {[%clk 0:00:05]} 68. Bg1 {[%clk 0:00:11]}  Kf3 {[%clk 0:00:05]} 69. Kd2 {[%clk 0:00:11]}  Kg3 {[%clk 0:00:05]} 70. Ke2 {[%clk 0:00:12]}  Kh3 {[%clk 0:00:06]} 71. Kf3 {[%clk 0:00:12]}  Kh4 {[%clk 0:00:06]} 72. Kxg2 {[%clk 0:00:12]} 1/2-1/2


[Site "https://www.chess.com"]

[Event "Titled Tuesday Blitz September 27 Early 2022"]
[White "Tsukerman, Julia"]
[Black "Winkels, Marcel"]
[WhiteFideId "2621649"]
[BlackFideId "1003887"]
[WhiteElo "1667"]
[BlackElo "1900"]
[Result "1-0"]
[Round "10"]
[TimeControl "180+1"]
[Date "2022.09.27"]
[WhiteClock "0:00:09"]
[BlackClock "0:01:06"]

1. e4 {[%clk 0:03:00]}  c5 {[%clk 0:02:58]} 2. Nf3 {[%clk 0:02:59]}  d6 {[%clk 0:02:57]} 3. d4 {[%clk 0:03:00]}  cxd4 {[%clk 0:02:58]} 4. Nxd4 {[%clk 0:03:00]}  Nf6 {[%clk 0:02:58]} 5. Nc3 {[%clk 0:03:01]}  a6 {[%clk 0:02:58]} 6. g3 {[%clk 0:03:00]}  e5 {[%clk 0:02:56]} 7. Nde2 {[%clk 0:02:59]}  Be7 {[%clk 0:02:57]} 8. Bg2 {[%clk 0:02:59]}  O-O {[%clk 0:02:56]} 9. O-O {[%clk 0:02:58]}  b5 {[%clk 0:02:55]} 10. Nd5 {[%clk 0:02:57]}  Bb7 {[%clk 0:02:53]} 11. Nec3 {[%clk 0:02:54]}  Nbd7 {[%clk 0:02:51]} 12. a3 {[%clk 0:02:51]}  Rc8 {[%clk 0:02:49]} 13. Be3 {[%clk 0:02:50]}  Re8 {[%clk 0:02:41]} 14. Qd2 {[%clk 0:02:45]}  Bf8 {[%clk 0:02:40]} 15. Bg5 {[%clk 0:02:41]}  h6 {[%clk 0:02:36]} 16. Be3 {[%clk 0:02:25]}  Nc5 {[%clk 0:02:34]} 17. Rad1 {[%clk 0:02:09]}  Na4 {[%clk 0:02:30]} 18. Nxa4 {[%clk 0:01:47]}  Nxd5 {[%clk 0:02:25]} 19. exd5 {[%clk 0:01:41]}  bxa4 {[%clk 0:02:25]} 20. c3 {[%clk 0:01:34]}  Qd7 {[%clk 0:02:17]} 21. f4 {[%clk 0:01:22]}  exf4 {[%clk 0:02:13]} 22. Bxf4 {[%clk 0:01:17]}  Rb8 {[%clk 0:02:04]} 23. Rf2 {[%clk 0:01:08]}  a5 {[%clk 0:01:57]} 24. c4 {[%clk 0:00:46]}  Ba6 {[%clk 0:01:55]} 25. Bf1 {[%clk 0:00:43]}  Rb3 {[%clk 0:01:51]} 26. Qxa5 {[%clk 0:00:40]}  Bc8 {[%clk 0:01:31]} 27. Qd2 {[%clk 0:00:37]}  Qb7 {[%clk 0:01:26]} 28. Bd3 {[%clk 0:00:20]}  Bd7 {[%clk 0:01:21]} 29. Rdf1 {[%clk 0:00:20]}  Be7 {[%clk 0:01:20]} 30. Be3 {[%clk 0:00:18]}  Bf6 {[%clk 0:01:17]} 31. Rxf6 {[%clk 0:00:15]}  Rxb2 {[%clk 0:01:15]} 32. Qc3 {[%clk 0:00:11]}  Rxe3 {[%clk 0:01:07]} 33. Rxf7 {[%clk 0:00:09]}  Re8 {[%clk 0:01:06]} 34. Qxg7# {[%clk 0:00:09]} 1-0


[Site "https://www.chess.com"]

[Event "Titled Tuesday Blitz September 27 Early 2022"]
[White "Valle Maytin, Luis Enrique"]
[Black "Blokhin, Sofia"]
[WhiteFideId "3503666"]
[BlackFideId "4508190"]
[WhiteElo "2225"]
[BlackElo "1771"]
[Result "1-0"]
[Round "10"]
[TimeControl "180+1"]
[Date "2022.09.27"]
[WhiteClock "0:00:22"]
[BlackClock "0:00:02"]

1. e4 {[%clk 0:02:32]}  c5 {[%clk 0:02:58]} 2. Nf3 {[%clk 0:02:32]}  Nc6 {[%clk 0:02:57]} 3. d4 {[%clk 0:02:32]}  cxd4 {[%clk 0:02:57]} 4. Nxd4 {[%clk 0:02:33]}  e5 {[%clk 0:02:57]} 5. Nb5 {[%clk 0:02:33]}  d6 {[%clk 0:02:58]} 6. N1c3 {[%clk 0:02:32]}  a6 {[%clk 0:02:56]} 7. Na3 {[%clk 0:02:32]}  Be7 {[%clk 0:02:56]} 8. Nd5 {[%clk 0:02:31]}  b5 {[%clk 0:02:54]} 9. Be3 {[%clk 0:02:30]}  Rb8 {[%clk 0:02:54]} 10. c3 {[%clk 0:02:15]}  f5 {[%clk 0:02:52]} 11. exf5 {[%clk 0:02:10]}  Bxf5 {[%clk 0:02:46]} 12. Bd3 {[%clk 0:02:10]}  e4 {[%clk 0:02:33]} 13. Be2 {[%clk 0:02:09]}  Nf6 {[%clk 0:02:30]} 14. Nxe7 {[%clk 0:02:07]}  Qxe7 {[%clk 0:02:26]} 15. Nc2 {[%clk 0:02:01]}  d5 {[%clk 0:02:23]} 16. Nd4 {[%clk 0:01:59]}  Nxd4 {[%clk 0:02:23]} 17. Qxd4 {[%clk 0:02:00]}  b4 {[%clk 0:02:18]} 18. O-O {[%clk 0:01:47]}  O-O {[%clk 0:02:10]} 19. c4 {[%clk 0:01:33]}  Rfd8 {[%clk 0:01:58]} 20. c5 {[%clk 0:01:31]}  a5 {[%clk 0:01:46]} 21. Rac1 {[%clk 0:01:29]}  Rdc8 {[%clk 0:01:41]} 22. c6 {[%clk 0:01:27]}  Qd6 {[%clk 0:01:28]} 23. Qa7 {[%clk 0:01:10]}  Ra8 {[%clk 0:01:21]} 24. Qb7 {[%clk 0:01:00]}  Rcb8 {[%clk 0:01:09]} 25. Bc5 {[%clk 0:00:59]}  Qf4 {[%clk 0:00:55]} 26. Qe7 {[%clk 0:00:54]}  Re8 {[%clk 0:00:49]} 27. Qd6 {[%clk 0:00:53]}  Qd2 {[%clk 0:00:44]} 28. Bb5 {[%clk 0:00:35]}  Rab8 {[%clk 0:00:22]} 29. Ba4 {[%clk 0:00:30]}  Rbc8 {[%clk 0:00:16]} 30. c7 {[%clk 0:00:26]}  Re6 {[%clk 0:00:06]} 31. Qd8+ {[%clk 0:00:26]}  Re8 {[%clk 0:00:02]} 32. Bxe8 {[%clk 0:00:22]}  Rxd8 {[%clk 0:00:02]} 33. cxd8=Q {[%clk 0:00:22]} 1-0


[Site "https://www.chess.com"]

[Event "Titled Tuesday Blitz September 27 Early 2022"]
[White "Vogel, Roven"]
[Black "Matinian, Nikita"]
[WhiteFideId "12908088"]
[BlackFideId "24129100"]
[WhiteElo "2501"]
[BlackElo "2422"]
[Result "0-1"]
[Round "10"]
[TimeControl "180+1"]
[Date "2022.09.27"]
[WhiteClock "0:00:02"]
[BlackClock "0:00:22"]

1. d4 {[%clk 0:03:00]}  Nf6 {[%clk 0:02:59]} 2. Nc3 {[%clk 0:02:55]}  d5 {[%clk 0:02:59]} 3. Bf4 {[%clk 0:02:53]}  Bf5 {[%clk 0:02:56]} 4. e3 {[%clk 0:02:53]}  e6 {[%clk 0:02:55]} 5. Bd3 {[%clk 0:02:53]}  Bxd3 {[%clk 0:02:54]} 6. cxd3 {[%clk 0:02:52]}  c6 {[%clk 0:02:49]} 7. Nf3 {[%clk 0:02:51]}  Nbd7 {[%clk 0:02:49]} 8. h3 {[%clk 0:02:50]}  Be7 {[%clk 0:02:49]} 9. O-O {[%clk 0:02:49]}  O-O {[%clk 0:02:49]} 10. e4 {[%clk 0:02:49]}  Qb6 {[%clk 0:02:47]} 11. Qe2 {[%clk 0:02:48]}  Qa6 {[%clk 0:02:40]} 12. Qd2 {[%clk 0:02:46]}  Rfd8 {[%clk 0:02:38]} 13. Bg5 {[%clk 0:02:41]}  dxe4 {[%clk 0:02:19]} 14. dxe4 {[%clk 0:02:42]}  c5 {[%clk 0:02:17]} 15. e5 {[%clk 0:02:32]}  cxd4 {[%clk 0:02:12]} 16. Qxd4 {[%clk 0:02:25]}  Nf8 {[%clk 0:01:45]} 17. Qf4 {[%clk 0:01:26]}  Ng6 {[%clk 0:01:28]} 18. exf6 {[%clk 0:01:26]}  Nxf4 {[%clk 0:01:28]} 19. fxe7 {[%clk 0:01:26]}  Nxh3+ {[%clk 0:01:26]} 20. gxh3 {[%clk 0:01:26]}  Re8 {[%clk 0:01:26]} 21. Rad1 {[%clk 0:01:19]}  f6 {[%clk 0:01:26]} 22. Be3 {[%clk 0:01:19]}  Rxe7 {[%clk 0:01:24]} 23. Rd4 {[%clk 0:01:16]}  Rc8 {[%clk 0:01:13]} 24. Rfd1 {[%clk 0:01:15]}  Rc4 {[%clk 0:01:11]} 25. Rd8+ {[%clk 0:01:14]}  Kf7 {[%clk 0:01:12]} 26. Kg2 {[%clk 0:01:10]}  Qc6 {[%clk 0:01:09]} 27. Rh8 {[%clk 0:01:04]}  Rd7 {[%clk 0:00:55]} 28. Rxd7+ {[%clk 0:01:01]}  Qxd7 {[%clk 0:00:56]} 29. Rxh7 {[%clk 0:00:58]}  Kg8 {[%clk 0:00:39]} 30. Rh5 {[%clk 0:00:52]}  e5 {[%clk 0:00:40]} 31. Bxa7 {[%clk 0:00:38]}  Qe8 {[%clk 0:00:29]} 32. Rh4 {[%clk 0:00:34]}  Qg6+ {[%clk 0:00:29]} 33. Kh2 {[%clk 0:00:24]}  Rxh4 {[%clk 0:00:28]} 34. Nxh4 {[%clk 0:00:25]}  Qc2 {[%clk 0:00:29]} 35. Nd5 {[%clk 0:00:09]}  Qxb2 {[%clk 0:00:28]} 36. a4 {[%clk 0:00:05]}  Qb3 {[%clk 0:00:25]} 37. Nf5 {[%clk 0:00:05]}  Qxa4 {[%clk 0:00:23]} 38. Be3 {[%clk 0:00:02]}  b5 {[%clk 0:00:22]} 0-1


[Site "https://www.chess.com"]